[Event "Titled Tuesday Blitz April 11 Late 2023"]
[White "Ferreira, Vitor Hugo Vieira"]
[Black "Ozalp, Burak"]
[WhiteFideId "2119765"]
[BlackFideId "6314210"]
[WhiteElo "2146"]
[BlackElo "2106"]
[Result "0-1"]
[Round "04"]
[TimeControl "180+2"]
[Date "2023.04.11"]
[WhiteClock "0:01:32"]
[BlackClock "0:00:23"]

1. Nf3 {[%clk 0:03:00]}  g6 {[%clk 0:02:58]} 2. g3 {[%clk 0:03:01]}  Bg7 {[%clk 0:02:59]} 3. Bg2 {[%clk 0:03:01]}  e5 {[%clk 0:02:58]} 4. O-O {[%clk 0:02:59]}  Nc6 {[%clk 0:02:57]} 5. c4 {[%clk 0:02:56]}  Nge7 {[%clk 0:02:57]} 6. Nc3 {[%clk 0:02:56]}  O-O {[%clk 0:02:56]} 7. Rb1 {[%clk 0:02:56]}  a5 {[%clk 0:02:54]} 8. a3 {[%clk 0:02:56]}  d6 {[%clk 0:02:55]} 9. b4 {[%clk 0:02:56]}  axb4 {[%clk 0:02:54]} 10. axb4 {[%clk 0:02:56]}  Nf5 {[%clk 0:02:45]} 11. b5 {[%clk 0:02:50]}  Ncd4 {[%clk 0:02:45]} 12. Ne1 {[%clk 0:02:42]}  Rb8 {[%clk 0:02:25]} 13. e3 {[%clk 0:02:42]}  Ne6 {[%clk 0:02:24]} 14. Nc2 {[%clk 0:02:38]}  h5 {[%clk 0:02:24]} 15. Bb2 {[%clk 0:02:27]}  h4 {[%clk 0:02:24]} 16. Nd5 {[%clk 0:02:23]}  c6 {[%clk 0:02:17]} 17. bxc6 {[%clk 0:02:22]}  bxc6 {[%clk 0:02:18]} 18. Ndb4 {[%clk 0:02:23]}  hxg3 {[%clk 0:01:51]} 19. hxg3 {[%clk 0:02:20]}  Bd7 {[%clk 0:01:39]} 20. Nxc6 {[%clk 0:02:15]}  Bxc6 {[%clk 0:01:39]} 21. Bxc6 {[%clk 0:02:15]}  Nc5 {[%clk 0:01:40]} 22. d4 {[%clk 0:02:11]}  exd4 {[%clk 0:01:37]} 23. exd4 {[%clk 0:02:11]}  Ne6 {[%clk 0:01:26]} 24. Bd5 {[%clk 0:02:07]}  Qg5 {[%clk 0:01:17]} 25. Qd3 {[%clk 0:01:56]}  Nf4 {[%clk 0:01:12]} 26. Qf3 {[%clk 0:01:51]}  Nh3+ {[%clk 0:00:42]} 27. Kg2 {[%clk 0:01:50]}  Nh4+ {[%clk 0:00:41]} 28. Kxh3 {[%clk 0:01:49]}  Nxf3 {[%clk 0:00:41]} 29. Bxf3 {[%clk 0:01:50]}  Qf5+ {[%clk 0:00:37]} 30. Kg2 {[%clk 0:01:51]}  Qxc2 {[%clk 0:00:37]} 31. Rfc1 {[%clk 0:01:48]}  Rxb2 {[%clk 0:00:32]} 32. Rxc2 {[%clk 0:01:47]}  Rxc2 {[%clk 0:00:32]} 33. Bd5 {[%clk 0:01:40]}  Bxd4 {[%clk 0:00:31]} 34. Rb7 {[%clk 0:01:38]}  Bc5 {[%clk 0:00:30]} 35. Kh3 {[%clk 0:01:35]}  Rxf2 {[%clk 0:00:30]} 36. Rb3 {[%clk 0:01:34]}  Kg7 {[%clk 0:00:30]} 37. Kg4 {[%clk 0:01:34]}  Rh8 {[%clk 0:00:26]} 38. Rf3 {[%clk 0:01:31]}  f5+ {[%clk 0:00:26]} 39. Kf4 {[%clk 0:01:32]}  Rxf3+ {[%clk 0:00:24]} 40. Kxf3 {[%clk 0:01:32]}  Kf6 {[%clk 0:00:23]} 0-1


[Site "https://www.chess.com"]

[Event "Titled Tuesday Blitz April 11 Late 2023"]
[White "Kostiukov, Alexandr"]
[Black "Forgacs, Attila Jr."]
[WhiteFideId "14108100"]
[BlackFideId "773654"]
[WhiteElo "2202"]
[BlackElo "2168"]
[Result "0-1"]
[Round "04"]
[TimeControl "180+2"]
[Date "2023.04.11"]
[WhiteClock "0:00:41"]
[BlackClock "0:00:59"]

1. g3 {[%clk 0:02:58]}  g6 {[%clk 0:03:00]} 2. Bg2 {[%clk 0:02:58]}  Bg7 {[%clk 0:03:00]} 3. c4 {[%clk 0:02:59]}  Nf6 {[%clk 0:02:59]} 4. Nf3 {[%clk 0:02:59]}  O-O {[%clk 0:02:58]} 5. O-O {[%clk 0:03:00]}  d6 {[%clk 0:02:59]} 6. d4 {[%clk 0:03:00]}  Nc6 {[%clk 0:02:59]} 7. Nc3 {[%clk 0:03:00]}  e5 {[%clk 0:02:59]} 8. h3 {[%clk 0:02:46]}  Re8 {[%clk 0:02:44]} 9. e4 {[%clk 0:02:44]}  exd4 {[%clk 0:02:41]} 10. Nxd4 {[%clk 0:02:45]}  Nxd4 {[%clk 0:02:42]} 11. Qxd4 {[%clk 0:02:45]}  Nxe4 {[%clk 0:02:40]} 12. Qd1 {[%clk 0:01:48]}  Nxc3 {[%clk 0:02:40]} 13. bxc3 {[%clk 0:01:49]}  Bxc3 {[%clk 0:02:17]} 14. Rb1 {[%clk 0:01:49]}  Rb8 {[%clk 0:02:17]} 15. Be3 {[%clk 0:01:48]}  b6 {[%clk 0:02:03]} 16. Qa4 {[%clk 0:01:42]}  a5 {[%clk 0:01:37]} 17. Bc6 {[%clk 0:01:41]}  Bxh3 {[%clk 0:01:14]} 18. Rfc1 {[%clk 0:01:39]}  Rxe3 {[%clk 0:01:14]} 19. fxe3 {[%clk 0:01:30]}  Be5 {[%clk 0:01:09]} 20. Kh2 {[%clk 0:01:01]}  Qh4 {[%clk 0:01:04]} 21. c5 {[%clk 0:00:42]}  Qxg3+ {[%clk 0:00:59]} 22. Kh1 {[%clk 0:00:41]} 0-1


[Site "https://www.chess.com"]

[Event "Titled Tuesday Blitz April 11 Late 2023"]
[White "Erzhanov, Arman"]
[Black "Prieto Aranguren, Alain"]
[WhiteFideId "4138821"]
[BlackFideId "2268906"]
[WhiteElo "2138"]
[BlackElo "2209"]
[Result "1-0"]
[Round "04"]
[TimeControl "180+2"]
[Date "2023.04.11"]
[WhiteClock "0:00:12"]
[BlackClock "0:00:04"]

1. e4 {[%clk 0:03:00]}  c6 {[%clk 0:02:59]} 2. d4 {[%clk 0:02:59]}  d5 {[%clk 0:02:59]} 3. exd5 {[%clk 0:03:00]}  cxd5 {[%clk 0:02:59]} 4. c4 {[%clk 0:03:01]}  Nf6 {[%clk 0:02:58]} 5. Nc3 {[%clk 0:03:01]}  e6 {[%clk 0:02:56]} 6. c5 {[%clk 0:03:02]}  Be7 {[%clk 0:02:55]} 7. Nf3 {[%clk 0:03:02]}  O-O {[%clk 0:02:56]} 8. Qc2 {[%clk 0:03:02]}  b6 {[%clk 0:02:55]} 9. b4 {[%clk 0:03:02]}  a5 {[%clk 0:02:55]} 10. Na4 {[%clk 0:03:02]}  Nc6 {[%clk 0:02:47]} 11. Nxb6 {[%clk 0:02:39]}  Nxb4 {[%clk 0:02:47]} 12. Qd1 {[%clk 0:02:33]}  Rb8 {[%clk 0:02:39]} 13. a3 {[%clk 0:02:33]}  Nc6 {[%clk 0:02:30]} 14. Bf4 {[%clk 0:02:33]}  Rb7 {[%clk 0:02:23]} 15. Nxc8 {[%clk 0:02:26]}  Qxc8 {[%clk 0:02:21]} 16. Ba6 {[%clk 0:02:27]}  Nh5 {[%clk 0:02:16]} 17. Be3 {[%clk 0:02:16]}  f5 {[%clk 0:02:09]} 18. O-O {[%clk 0:02:01]}  f4 {[%clk 0:02:09]} 19. Bd2 {[%clk 0:02:01]}  Rf5 {[%clk 0:01:56]} 20. Re1 {[%clk 0:01:59]}  g5 {[%clk 0:01:50]} 21. h3 {[%clk 0:01:22]}  Nf6 {[%clk 0:01:39]} 22. Bxb7 {[%clk 0:01:21]}  Qxb7 {[%clk 0:01:39]} 23. Rxe6 {[%clk 0:01:22]}  Ne4 {[%clk 0:01:37]} 24. Qa4 {[%clk 0:01:09]}  Rf6 {[%clk 0:01:14]} 25. Rxc6 {[%clk 0:00:26]}  Rxc6 {[%clk 0:01:05]} 26. Bxa5 {[%clk 0:00:22]}  Kg7 {[%clk 0:00:37]} 27. Bb4 {[%clk 0:00:20]}  Bf6 {[%clk 0:00:33]} 28. Rd1 {[%clk 0:00:19]}  Re6 {[%clk 0:00:26]} 29. Rc1 {[%clk 0:00:16]}  Rc6 {[%clk 0:00:21]} 30. Ne5 {[%clk 0:00:15]}  Bxe5 {[%clk 0:00:18]} 31. dxe5 {[%clk 0:00:16]}  h5 {[%clk 0:00:11]} 32. Qd1 {[%clk 0:00:16]}  Qf7 {[%clk 0:00:09]} 33. f3 {[%clk 0:00:15]}  Ng3 {[%clk 0:00:08]} 34. Rc2 {[%clk 0:00:14]}  Qf5 {[%clk 0:00:07]} 35. Rd2 {[%clk 0:00:14]}  Re6 {[%clk 0:00:05]} 36. Rxd5 {[%clk 0:00:14]}  g4 {[%clk 0:00:05]} 37. fxg4 {[%clk 0:00:13]}  Qe4 {[%clk 0:00:04]} 38. Rd7+ {[%clk 0:00:12]}  Kg6 {[%clk 0:00:04]} 39. Qd3 {[%clk 0:00:12]} 1-0


[Site "https://www.chess.com"]

[Event "Titled Tuesday Blitz April 11 Late 2023"]
[White "Stanisz, Patryk"]
[Black "Papayan, Oleg"]
[WhiteFideId "1123106"]
[BlackFideId "4193911"]
[WhiteElo "2069"]
[BlackElo "2153"]
[Result "0-1"]
[Round "04"]
[TimeControl "180+2"]
[Date "2023.04.11"]
[WhiteClock "0:00:01"]
[BlackClock "0:00:22"]

1. d4 {[%clk 0:03:00]}  Nf6 {[%clk 0:03:00]} 2. c4 {[%clk 0:03:01]}  e6 {[%clk 0:03:01]} 3. Nc3 {[%clk 0:03:01]}  Bb4 {[%clk 0:03:01]} 4. e3 {[%clk 0:03:01]}  O-O {[%clk 0:03:02]} 5. Ne2 {[%clk 0:03:01]}  c6 {[%clk 0:03:01]} 6. a3 {[%clk 0:03:02]}  Ba5 {[%clk 0:03:02]} 7. b4 {[%clk 0:03:00]}  Bc7 {[%clk 0:03:03]} 8. Ng3 {[%clk 0:02:48]}  d5 {[%clk 0:03:02]} 9. cxd5 {[%clk 0:02:43]}  exd5 {[%clk 0:03:00]} 10. Bd3 {[%clk 0:02:39]}  a5 {[%clk 0:03:00]} 11. b5 {[%clk 0:02:35]}  Bg4 {[%clk 0:02:57]} 12. Qc2 {[%clk 0:02:26]}  Re8 {[%clk 0:02:51]} 13. O-O {[%clk 0:02:25]}  h5 {[%clk 0:02:46]} 14. Nf5 {[%clk 0:02:03]}  Nbd7 {[%clk 0:02:32]} 15. h3 {[%clk 0:02:00]}  Bxf5 {[%clk 0:02:28]} 16. Bxf5 {[%clk 0:02:01]}  Nb6 {[%clk 0:02:23]} 17. bxc6 {[%clk 0:01:50]}  bxc6 {[%clk 0:02:21]} 18. Na4 {[%clk 0:01:42]}  Qd6 {[%clk 0:02:11]} 19. g3 {[%clk 0:01:38]}  Nxa4 {[%clk 0:01:44]} 20. Qxa4 {[%clk 0:01:37]}  h4 {[%clk 0:01:44]} 21. Qc2 {[%clk 0:01:06]}  hxg3 {[%clk 0:01:44]} 22. f4 {[%clk 0:01:07]}  Ne4 {[%clk 0:01:39]} 23. Bxe4 {[%clk 0:01:04]}  Rxe4 {[%clk 0:01:36]} 24. Rf3 {[%clk 0:01:04]}  Qh6 {[%clk 0:00:57]} 25. Kg2 {[%clk 0:00:34]}  Rae8 {[%clk 0:00:57]} 26. Rxg3 {[%clk 0:00:33]}  R8e6 {[%clk 0:00:57]} 27. Ra2 {[%clk 0:00:14]}  Rg6 {[%clk 0:00:56]} 28. Qf2 {[%clk 0:00:13]}  Rxg3+ {[%clk 0:00:50]} 29. Qxg3 {[%clk 0:00:14]}  Re6 {[%clk 0:00:51]} 30. Kh2 {[%clk 0:00:13]}  Qh7 {[%clk 0:00:43]} 31. Rg2 {[%clk 0:00:11]}  g6 {[%clk 0:00:29]} 32. f5 {[%clk 0:00:10]}  Bxg3+ {[%clk 0:00:28]} 33. Rxg3 {[%clk 0:00:10]}  Re4 {[%clk 0:00:26]} 34. fxg6 {[%clk 0:00:09]}  fxg6 {[%clk 0:00:27]} 35. Bd2 {[%clk 0:00:09]}  Qf7 {[%clk 0:00:27]} 36. Kg2 {[%clk 0:00:09]}  Kh7 {[%clk 0:00:26]} 37. Rf3 {[%clk 0:00:08]}  Qa7 {[%clk 0:00:24]} 38. a4 {[%clk 0:00:04]}  Qa6 {[%clk 0:00:24]} 39. Rf7+ {[%clk 0:00:03]}  Kg8 {[%clk 0:00:24]} 40. Rf3 {[%clk 0:00:02]}  Qe2+ {[%clk 0:00:24]} 41. Rf2 {[%clk 0:00:02]}  Qd3 {[%clk 0:00:24]} 42. Bxa5 {[%clk 0:00:01]}  Rxe3 {[%clk 0:00:23]} 43. Bc7 {[%clk 0:00:01]}  Rxh3 {[%clk 0:00:22]} 0-1


[Site "https://www.chess.com"]

[Event "Titled Tuesday Blitz April 11 Late 2023"]
[White "Jonkman, Harmen"]
[Black "Sariego Figueredo, Wilfredo"]
[WhiteFideId "1002708"]
[BlackFideId "3500080"]
[WhiteElo "2368"]
[BlackElo "2309"]
[Result "1-0"]
[Round "04"]
[TimeControl "180+2"]
[Date "2023.04.11"]
[WhiteClock "0:00:02"]
[BlackClock "0:00:02"]

1. e4 {[%clk 0:02:54]}  c5 {[%clk 0:03:00]} 2. Nf3 {[%clk 0:02:52]}  a6 {[%clk 0:03:00]} 3. c3 {[%clk 0:02:51]}  d5 {[%clk 0:03:00]} 4. exd5 {[%clk 0:02:50]}  Qxd5 {[%clk 0:03:01]} 5. d4 {[%clk 0:02:49]}  e6 {[%clk 0:03:01]} 6. Nbd2 {[%clk 0:02:49]}  cxd4 {[%clk 0:02:46]} 7. Nxd4 {[%clk 0:02:48]}  Nf6 {[%clk 0:02:44]} 8. Qb3 {[%clk 0:02:16]}  Bc5 {[%clk 0:02:31]} 9. N2f3 {[%clk 0:02:14]}  O-O {[%clk 0:02:23]} 10. Be3 {[%clk 0:02:11]}  Nc6 {[%clk 0:02:07]} 11. Nxc6 {[%clk 0:01:55]}  Qxc6 {[%clk 0:02:05]} 12. Bxc5 {[%clk 0:01:47]}  Qxc5 {[%clk 0:02:06]} 13. Be2 {[%clk 0:01:42]}  b5 {[%clk 0:02:00]} 14. O-O {[%clk 0:01:41]}  Bb7 {[%clk 0:01:59]} 15. a4 {[%clk 0:01:40]}  Bd5 {[%clk 0:01:55]} 16. Qa3 {[%clk 0:01:38]}  Qxa3 {[%clk 0:01:48]} 17. Rxa3 {[%clk 0:01:38]}  Rab8 {[%clk 0:01:37]} 18. axb5 {[%clk 0:01:35]}  axb5 {[%clk 0:01:38]} 19. Ra5 {[%clk 0:01:31]}  Bc4 {[%clk 0:01:36]} 20. Nd4 {[%clk 0:01:04]}  Bxe2 {[%clk 0:01:26]} 21. Nxe2 {[%clk 0:01:03]}  b4 {[%clk 0:01:19]} 22. c4 {[%clk 0:00:25]}  Rfc8 {[%clk 0:01:12]} 23. Rc1 {[%clk 0:00:24]}  Ne4 {[%clk 0:01:08]} 24. Nd4 {[%clk 0:00:20]}  h6 {[%clk 0:00:50]} 25. c5 {[%clk 0:00:14]}  Rb7 {[%clk 0:00:46]} 26. c6 {[%clk 0:00:13]}  Rbc7 {[%clk 0:00:45]} 27. Ra6 {[%clk 0:00:13]}  Nd6 {[%clk 0:00:40]} 28. Rb6 {[%clk 0:00:11]}  e5 {[%clk 0:00:26]} 29. Nb3 {[%clk 0:00:09]}  f6 {[%clk 0:00:18]} 30. f3 {[%clk 0:00:09]}  Nf5 {[%clk 0:00:14]} 31. Kf2 {[%clk 0:00:04]}  Ne7 {[%clk 0:00:14]} 32. Na5 {[%clk 0:00:03]}  Ra8 {[%clk 0:00:12]} 33. Rb7 {[%clk 0:00:02]}  Rac8 {[%clk 0:00:09]} 34. Rxb4 {[%clk 0:00:02]}  Ra8 {[%clk 0:00:04]} 35. Rb7 {[%clk 0:00:02]}  Rac8 {[%clk 0:00:03]} 36. Rxc7 {[%clk 0:00:01]}  Rxc7 {[%clk 0:00:03]} 37. b4 {[%clk 0:00:02]}  Nd5 {[%clk 0:00:02]} 38. b5 {[%clk 0:00:02]}  Nb6 {[%clk 0:00:02]} 39. Nb7 {[%clk 0:00:02]} 1-0


[Site "https://www.chess.com"]

[Event "Titled Tuesday Blitz April 11 Late 2023"]
[White "Bochnicka, Vladimir"]
[Black "Tarnowska, Aleksandra"]
[WhiteFideId "14943450"]
[BlackFideId "1180967"]
[WhiteElo "2094"]
[BlackElo "1776"]
[Result "1-0"]
[Round "04"]
[TimeControl "180+2"]
[Date "2023.04.11"]
[WhiteClock "0:01:22"]
[BlackClock "0:00:17"]

1. e4 {[%clk 0:03:00]}  c5 {[%clk 0:02:57]} 2. Nf3 {[%clk 0:03:00]}  e6 {[%clk 0:02:57]} 3. g3 {[%clk 0:03:00]}  Nc6 {[%clk 0:02:53]} 4. Bg2 {[%clk 0:02:59]}  Be7 {[%clk 0:02:53]} 5. O-O {[%clk 0:02:58]}  d6 {[%clk 0:02:45]} 6. d3 {[%clk 0:02:55]}  Nf6 {[%clk 0:02:45]} 7. h3 {[%clk 0:02:53]}  O-O {[%clk 0:02:45]} 8. c3 {[%clk 0:02:51]}  d5 {[%clk 0:02:36]} 9. Qe2 {[%clk 0:02:45]}  dxe4 {[%clk 0:02:34]} 10. dxe4 {[%clk 0:02:43]}  e5 {[%clk 0:02:34]} 11. Nbd2 {[%clk 0:02:36]}  Be6 {[%clk 0:02:19]} 12. Ng5 {[%clk 0:02:22]}  Qc8 {[%clk 0:02:18]} 13. Nxe6 {[%clk 0:02:20]}  Qxe6 {[%clk 0:02:18]} 14. Nc4 {[%clk 0:02:17]}  b5 {[%clk 0:02:08]} 15. Ne3 {[%clk 0:02:14]}  Rab8 {[%clk 0:01:59]} 16. a4 {[%clk 0:02:08]}  b4 {[%clk 0:01:57]} 17. Nd5 {[%clk 0:02:04]}  Na5 {[%clk 0:01:47]} 18. Be3 {[%clk 0:01:51]}  bxc3 {[%clk 0:01:17]} 19. bxc3 {[%clk 0:01:50]}  Rb3 {[%clk 0:01:15]} 20. Rab1 {[%clk 0:01:40]}  Rfb8 {[%clk 0:01:15]} 21. Rxb3 {[%clk 0:01:40]}  Rxb3 {[%clk 0:01:15]} 22. Rd1 {[%clk 0:01:41]}  h6 {[%clk 0:00:56]} 23. Nxe7+ {[%clk 0:01:25]}  Qxe7 {[%clk 0:00:56]} 24. Qa6 {[%clk 0:01:26]}  Qc7 {[%clk 0:00:51]} 25. Bxh6 {[%clk 0:01:26]}  gxh6 {[%clk 0:00:21]} 26. Qxf6 {[%clk 0:01:24]}  Rb6 {[%clk 0:00:22]} 27. Rd8+ {[%clk 0:01:23]}  Kh7 {[%clk 0:00:17]} 28. Rh8# {[%clk 0:01:22]} 1-0


[Site "https://www.chess.com"]

[Event "Titled Tuesday Blitz April 11 Late 2023"]
[White "Eisa Mohmood, Alkhoori"]
[Black "Bas Mas, Jose Joaquin"]
[WhiteFideId "9316116"]
[BlackFideId "22219064"]
[WhiteElo "1310"]
[BlackElo "2233"]
[Result "0-1"]
[Round "04"]
[TimeControl "180+2"]
[Date "2023.04.11"]
[WhiteClock "0:01:06"]
[BlackClock "0:01:03"]

1. e4 {[%clk 0:02:59]}  e6 {[%clk 0:02:59]} 2. d4 {[%clk 0:02:59]}  d5 {[%clk 0:02:58]} 3. Nc3 {[%clk 0:03:00]}  Nf6 {[%clk 0:02:58]} 4. Bg5 {[%clk 0:02:59]}  dxe4 {[%clk 0:02:59]} 5. Nxe4 {[%clk 0:02:59]}  Be7 {[%clk 0:02:59]} 6. Nxf6+ {[%clk 0:02:47]}  Bxf6 {[%clk 0:02:59]} 7. Bxf6 {[%clk 0:02:40]}  Qxf6 {[%clk 0:03:00]} 8. Nf3 {[%clk 0:02:39]}  O-O {[%clk 0:03:00]} 9. Bd3 {[%clk 0:02:38]}  c5 {[%clk 0:02:58]} 10. c3 {[%clk 0:02:34]}  cxd4 {[%clk 0:02:53]} 11. Nxd4 {[%clk 0:02:28]}  a6 {[%clk 0:02:48]} 12. O-O {[%clk 0:02:27]}  e5 {[%clk 0:02:48]} 13. Nf3 {[%clk 0:02:15]}  Bg4 {[%clk 0:02:38]} 14. Be4 {[%clk 0:02:01]}  Nc6 {[%clk 0:02:38]} 15. Qb3 {[%clk 0:02:00]}  Rab8 {[%clk 0:02:31]} 16. h3 {[%clk 0:01:52]}  Be6 {[%clk 0:02:29]} 17. Qb6 {[%clk 0:01:50]}  Bc4 {[%clk 0:02:22]} 18. Rfe1 {[%clk 0:01:47]}  g6 {[%clk 0:02:14]} 19. b3 {[%clk 0:01:47]}  Be6 {[%clk 0:02:12]} 20. Bxc6 {[%clk 0:01:45]}  bxc6 {[%clk 0:02:12]} 21. Qxc6 {[%clk 0:01:44]}  Rbc8 {[%clk 0:02:11]} 22. Qxa6 {[%clk 0:01:43]}  Rxc3 {[%clk 0:02:11]} 23. Nxe5 {[%clk 0:01:43]}  Qg5 {[%clk 0:01:53]} 24. Nf3 {[%clk 0:01:34]}  Rxf3 {[%clk 0:01:51]} 25. Rxe6 {[%clk 0:01:30]}  fxe6 {[%clk 0:01:49]} 26. Qxe6+ {[%clk 0:01:29]}  R3f7 {[%clk 0:01:47]} 27. a4 {[%clk 0:01:28]}  Kg7 {[%clk 0:01:48]} 28. Rf1 {[%clk 0:01:20]}  Qf5 {[%clk 0:01:47]} 29. Qc4 {[%clk 0:01:20]}  Rc8 {[%clk 0:01:45]} 30. Qd4+ {[%clk 0:01:18]}  Qf6 {[%clk 0:01:45]} 31. Qd5 {[%clk 0:01:18]}  Rc2 {[%clk 0:01:38]} 32. f4 {[%clk 0:01:16]}  Re2 {[%clk 0:01:15]} 33. a5 {[%clk 0:01:14]}  Qe6 {[%clk 0:01:13]} 34. Qd4+ {[%clk 0:01:13]}  Kh6 {[%clk 0:01:12]} 35. Kh1 {[%clk 0:01:10]}  Re1 {[%clk 0:01:08]} 36. Rxe1 {[%clk 0:01:08]}  Qxe1+ {[%clk 0:01:08]} 37. Kh2 {[%clk 0:01:09]}  Qxa5 {[%clk 0:01:05]} 38. Qe3 {[%clk 0:01:08]}  Qf5 {[%clk 0:01:04]} 39. g4 {[%clk 0:01:06]}  Qxf4+ {[%clk 0:01:03]} 0-1


[Site "https://www.chess.com"]

[Event "Titled Tuesday Blitz April 11 Late 2023"]
[White "Rios Escobar, Adan"]
[Black "De Souza, Cristiano Gomes"]
[WhiteFideId "3403645"]
[BlackFideId "2151758"]
[WhiteElo "2234"]
[BlackElo "2068"]
[Result "1-0"]
[Round "04"]
[TimeControl "180+2"]
[Date "2023.04.11"]
[WhiteClock "0:01:21"]
[BlackClock "0:01:07"]

1. d4 {[%clk 0:02:58]}  Nf6 {[%clk 0:02:58]} 2. g3 {[%clk 0:02:59]}  g6 {[%clk 0:02:58]} 3. Bg2 {[%clk 0:02:59]}  Bg7 {[%clk 0:02:58]} 4. e4 {[%clk 0:03:00]}  d6 {[%clk 0:02:57]} 5. Ne2 {[%clk 0:03:00]}  O-O {[%clk 0:02:56]} 6. O-O {[%clk 0:03:01]}  c6 {[%clk 0:02:57]} 7. a4 {[%clk 0:03:01]}  a6 {[%clk 0:02:55]} 8. a5 {[%clk 0:03:00]}  Nbd7 {[%clk 0:02:55]} 9. Nbc3 {[%clk 0:03:01]}  e5 {[%clk 0:02:55]} 10. h3 {[%clk 0:03:01]}  exd4 {[%clk 0:02:54]} 11. Nxd4 {[%clk 0:03:01]}  Nc5 {[%clk 0:02:54]} 12. Re1 {[%clk 0:03:00]}  Ne6 {[%clk 0:02:54]} 13. Be3 {[%clk 0:02:59]}  Nxd4 {[%clk 0:02:53]} 14. Bxd4 {[%clk 0:03:00]}  Ne8 {[%clk 0:02:53]} 15. Bxg7 {[%clk 0:02:58]}  Nxg7 {[%clk 0:02:53]} 16. Qd2 {[%clk 0:02:57]}  Qe7 {[%clk 0:02:52]} 17. Rad1 {[%clk 0:02:56]}  Rd8 {[%clk 0:02:52]} 18. Na4 {[%clk 0:02:54]}  Ne6 {[%clk 0:02:43]} 19. Nb6 {[%clk 0:02:55]}  Rb8 {[%clk 0:02:42]} 20. b4 {[%clk 0:02:54]}  Nc7 {[%clk 0:02:39]} 21. c4 {[%clk 0:02:44]}  Be6 {[%clk 0:02:38]} 22. Kh2 {[%clk 0:02:42]}  Na8 {[%clk 0:02:13]} 23. Na4 {[%clk 0:02:33]}  Bxc4 {[%clk 0:02:10]} 24. Re3 {[%clk 0:02:25]}  Bb5 {[%clk 0:02:03]} 25. Nc3 {[%clk 0:02:24]}  Nc7 {[%clk 0:02:01]} 26. f4 {[%clk 0:02:21]}  c5 {[%clk 0:01:57]} 27. Nxb5 {[%clk 0:02:14]}  Nxb5 {[%clk 0:01:54]} 28. Rd3 {[%clk 0:02:08]}  Nd4 {[%clk 0:01:52]} 29. Rc1 {[%clk 0:01:57]}  Rbc8 {[%clk 0:01:51]} 30. h4 {[%clk 0:01:44]}  Rc7 {[%clk 0:01:49]} 31. h5 {[%clk 0:01:40]}  Kg7 {[%clk 0:01:44]} 32. h6+ {[%clk 0:01:33]}  Kxh6 {[%clk 0:01:39]} 33. e5 {[%clk 0:01:33]}  Kg7 {[%clk 0:01:33]} 34. exd6 {[%clk 0:01:30]}  Rxd6 {[%clk 0:01:30]} 35. bxc5 {[%clk 0:01:26]}  Re6 {[%clk 0:01:19]} 36. Rxd4 {[%clk 0:01:24]}  Re2 {[%clk 0:01:19]} 37. Qc3 {[%clk 0:01:23]}  Kg8 {[%clk 0:01:11]} 38. Rcd1 {[%clk 0:01:23]}  Rc8 {[%clk 0:01:10]} 39. Rd7 {[%clk 0:01:21]}  Qe4 {[%clk 0:01:07]} 40. Rd8+ {[%clk 0:01:21]} 1-0


[Site "https://www.chess.com"]

[Event "Titled Tuesday Blitz April 11 Late 2023"]
[White "Wu, Brandon"]
[Black "Gonzalez Zamora, Juan Carlos"]
[WhiteFideId "30909228"]
[BlackFideId "3507548"]
[WhiteElo "2123"]
[BlackElo "2535"]
[Result "1-0"]
[Round "04"]
[TimeControl "180+2"]
[Date "2023.04.11"]
[WhiteClock "0:00:13"]
[BlackClock "0:00:02"]

1. d4 {[%clk 0:03:00]}  Nf6 {[%clk 0:02:59]} 2. Nf3 {[%clk 0:02:59]}  g6 {[%clk 0:02:58]} 3. c4 {[%clk 0:03:00]}  Bg7 {[%clk 0:02:58]} 4. g3 {[%clk 0:03:01]}  d6 {[%clk 0:02:58]} 5. Bg2 {[%clk 0:03:01]}  O-O {[%clk 0:02:56]} 6. O-O {[%clk 0:03:01]}  Nc6 {[%clk 0:02:57]} 7. Nc3 {[%clk 0:03:02]}  Bg4 {[%clk 0:02:56]} 8. h3 {[%clk 0:03:01]}  Bxf3 {[%clk 0:02:56]} 9. Bxf3 {[%clk 0:03:02]}  Nd7 {[%clk 0:02:56]} 10. Bxc6 {[%clk 0:02:57]}  bxc6 {[%clk 0:02:57]} 11. f4 {[%clk 0:02:58]}  Rb8 {[%clk 0:02:51]} 12. e4 {[%clk 0:02:57]}  c5 {[%clk 0:02:44]} 13. d5 {[%clk 0:02:54]}  Rb4 {[%clk 0:02:43]} 14. Qd3 {[%clk 0:02:40]}  Qb8 {[%clk 0:02:43]} 15. b3 {[%clk 0:02:30]}  e6 {[%clk 0:02:24]} 16. Bd2 {[%clk 0:02:28]}  Re8 {[%clk 0:01:58]} 17. Rae1 {[%clk 0:02:23]}  Rb7 {[%clk 0:01:36]} 18. e5 {[%clk 0:02:00]}  Nf8 {[%clk 0:01:19]} 19. Ne4 {[%clk 0:01:37]}  Rd8 {[%clk 0:00:58]} 20. Bc3 {[%clk 0:01:30]}  dxe5 {[%clk 0:00:47]} 21. Nxc5 {[%clk 0:01:16]}  exd5 {[%clk 0:00:42]} 22. Nxb7 {[%clk 0:01:14]}  Qxb7 {[%clk 0:00:43]} 23. cxd5 {[%clk 0:01:11]}  Rxd5 {[%clk 0:00:40]} 24. Qe4 {[%clk 0:01:07]}  Qb6+ {[%clk 0:00:31]} 25. Kh2 {[%clk 0:01:04]}  Qc5 {[%clk 0:00:12]} 26. Bxe5 {[%clk 0:01:00]}  Ne6 {[%clk 0:00:07]} 27. Bxg7 {[%clk 0:00:58]}  Kxg7 {[%clk 0:00:08]} 28. Re2 {[%clk 0:00:52]}  Nd4 {[%clk 0:00:07]} 29. Rg2 {[%clk 0:00:47]}  Nf5 {[%clk 0:00:06]} 30. Re1 {[%clk 0:00:38]}  Qd6 {[%clk 0:00:06]} 31. a4 {[%clk 0:00:28]}  Nd4 {[%clk 0:00:05]} 32. b4 {[%clk 0:00:25]}  Ne6 {[%clk 0:00:06]} 33. b5 {[%clk 0:00:24]}  Rd4 {[%clk 0:00:06]} 34. Qe5+ {[%clk 0:00:24]}  Qxe5 {[%clk 0:00:06]} 35. Rxe5 {[%clk 0:00:24]}  Rxa4 {[%clk 0:00:07]} 36. f5 {[%clk 0:00:23]}  Kf6 {[%clk 0:00:06]} 37. Rd5 {[%clk 0:00:21]}  gxf5 {[%clk 0:00:06]} 38. Rf2 {[%clk 0:00:21]}  f4 {[%clk 0:00:06]} 39. gxf4 {[%clk 0:00:20]}  Ke7 {[%clk 0:00:06]} 40. f5 {[%clk 0:00:20]}  Ng5 {[%clk 0:00:06]} 41. Re2+ {[%clk 0:00:18]}  Kf6 {[%clk 0:00:06]} 42. Rc5 {[%clk 0:00:18]}  Nf3+ {[%clk 0:00:06]} 43. Kg3 {[%clk 0:00:18]}  Nd4 {[%clk 0:00:07]} 44. Rf2 {[%clk 0:00:16]}  Ra3+ {[%clk 0:00:06]} 45. Kg2 {[%clk 0:00:17]}  h6 {[%clk 0:00:04]} 46. Rxc7 {[%clk 0:00:16]}  Nb3 {[%clk 0:00:03]} 47. Rc6+ {[%clk 0:00:14]}  Kg5 {[%clk 0:00:03]} 48. Rc3 {[%clk 0:00:14]}  a5 {[%clk 0:00:02]} 49. bxa6 {[%clk 0:00:13]} 1-0


[Site "https://www.chess.com"]